bitfinex-derivatives/quotes_ETHF0:USTF0_20250502
["timestamp","ask_amount","ask_price","bid_price","bid_amount"]
[1746158834717,0.8353,1850.9,1850.8,1.08034]
[1746158834904,1.08029,1850.9,1850.7,4.8497]
[1746158835109,1.727,1850.8,1850.7,5.93005]
[1746158835716,2.80734,1850.8,1850.7,5.11765]
[1746158835918,2.80734,1850.8,1850.7,3.2078]
[1746158836212,6.50334,1850.8,1850.7,3.2078]
[1746158836421,1.0804,1850.7,1850.6,5.2287]
[1746158836717,3.6506,1850.7,1850.6,5.2287]
[1746158836917,2.5702,1850.7,1850.6,6.30916]
[1746158837517,3.6506,1850.7,1850.6,2.82416]
[1746158837709,1.08046,1850.6,1850.5,6.6928]
[1746158837909,1.08057,1850.4,1850.3,3.2078]
[1746158838110,4.77657,1850.4,1850.3,3.2078]
[1746158838518,4.77657,1850.4,1850.3,4.28843]
[1746158839217,4.77657,1850.4,1850.3,3.2078]
[1746158839418,3.696,1850.4,1850.3,4.28843]
[1746158840018,5.2731,1850.4,1850.3,4.28843]
[1746158840520,6.35367,1850.4,1850.3,4.28843]
[1746158841118,6.35367,1850.4,1850.3,3.2078]
[1746158841320,6.35367,1850.4,1850.3,4.28843]
[1746158841819,6.35367,1850.4,1850.3,3.2078]
[1746158843724,6.35367,1850.4,1850.3,4.28843]
[1746158844624,6.35367,1850.4,1850.2,43.57614]
[1746158844921,1.6819,1850.3,1850.2,43.57614]
[1746158845121,1.08069,1850.2,1850.1,6.6928]
[1746158845322,2.74689,1850.2,1850.1,6.6928]
[1746158845718,1.6819,1850.3,1850.1,6.6928]
[1746158845917,1.6819,1850.3,1850.2,1.08069]
[1746158846118,1.6819,1850.3,1850.2,2.80379]
[1746158847227,5.3779,1850.3,1850.2,2.80379]
[1746158848029,3.696,1850.3,1850.2,2.80379]
[1746158848229,1.88249,1850.4,1850.2,2.5915]
[1746158848429,1.649,1850.5,1850.4,1.08057]
[1746158848823,1.649,1850.5,1850.4,2.80367]
[1746158849129,6.42551,1850.5,1850.3,5.08909]
[1746158849426,6.1621,1850.5,1850.4,1.08057]
[1746158849626,6.1621,1850.5,1850.4,1.7486]
[1746158849829,6.1621,1850.5,1850.4,1.08057]
[1746158850221,7.24261,1850.5,1850.3,5.08909]
[1746158850517,1.6728,1850.4,1850.3,5.08909]
[1746158851432,2.75337,1850.4,1850.3,6.6928]
[1746158851636,3.62217,1850.4,1850.3,3.2078]
[1746158852332,2.5416,1850.4,1850.3,4.28843]
[1746158853132,3.62217,1850.4,1850.3,3.2078]
[1746158853330,3.62217,1850.4,1850.3,4.28843]
[1746158853630,3.62217,1850.4,1850.2,6.31424]
[1746158853833,1.6057,1850.3,1850.2,6.31424]
[1746158859930,1.6057,1850.3,1850.2,2.82924]
[1746158860235,1.6057,1850.3,1850.2,4.55364]
[1746158861133,1.6057,1850.3,1850.2,6.20314]
[1746158864337,2.68633,1850.3,1850.2,6.20314]
[1746158865242,2.68633,1850.3,1850.2,5.1225]
[1746158865832,1.6057,1850.3,1850.2,5.1225]
[1746158866038,1.6057,1850.3,1850.2,6.20319]
[1746158867625,2.68633,1850.3,1850.2,1.6495]
[1746158867830,1.08069,1850.2,1850.1,7.76155]
[1746158868026,2.80069,1850.2,1850.1,7.76155]
[1746158868230,6.49669,1850.2,1850.1,7.76155]
[1746158868432,5.416,1850.2,1850.1,7.76155]
[1746158868634,6.49669,1850.2,1850.1,7.76155]
[1746158868932,6.49669,1850.2,1850.1,9.40655]
[1746158869136,2.80069,1850.2,1850.1,9.40655]
[1746158871143,6.49669,1850.2,1850.1,9.40655]
[1746158871444,5.416,1850.2,1850.1,9.40655]
[1746158872131,1.72,1850.2,1850.1,9.40655]
[1746158872533,2.80069,1850.2,1850.1,9.40655]
[1746158872744,1.72,1850.2,1850.1,9.40655]
[1746158872942,2.80069,1850.2,1850.1,9.40655]
[1746158873142,1.72,1850.2,1850.1,9.40655]
[1746158874942,1.94937,1850.4,1850.1,8.3258]
[1746158875139,2.6192,1850.4,1850.3,4.28843]
[1746158875540,3.69977,1850.4,1850.3,4.28843]
[1746158876252,5.4464,1850.4,1850.3,4.28843]
[1746158876547,3.696,1850.4,1850.3,6.85433]
[1746158877335,2.80012,1850.5,1850.4,1.08057]
[1746158877845,2.80012,1850.5,1850.3,6.85429]
[1746158878048,1.7196,1850.4,1850.3,6.85429]
[1746158880648,0.8049,1850.6,1850.5,1.08051]
[1746158880839,0.8049,1850.6,1850.5,4.28831]
[1746158881040,1.88536,1850.6,1850.5,3.2078]
[1746158881235,5.58136,1850.6,1850.5,3.2078]
[1746158881640,5.58136,1850.6,1850.5,4.28831]
[1746158881845,5.58136,1850.6,1850.5,3.2078]
[1746158882047,6.1123,1850.6,1850.5,4.28831]
[1746158882246,6.1123,1850.6,1850.5,5.90441]
[1746158883045,6.1123,1850.6,1850.3,0.835]
[1746158883046,19.38272,1850.6,1850.1,3.21665237]
[1746158883240,19.38272,1850.6,1849.9,14.2399365]
[1746158883241,1.08081,1850.0,1849.9,14.2399365]
[1746158883434,4.28861,1850.0,1849.9,14.2399365]
[1746158883639,9.28861,1850.0,1849.9,14.2399365]
[1746158884139,12.98461,1850.0,1849.9,14.2399365]
[1746158885149,1.08099,1849.7,1849.5,1.5877]
[1746158885338,1.0811,1849.5,1849.3,4.5542]
[1746158885542,0.8085,1849.6,1849.3,5.0607]
[1746158885846,0.8085,1849.6,1849.2,58.5129365]
[1746158885847,1.08116,1849.4,1849.2,58.5129365]
[1746158886042,1.08116,1849.4,1849.2,61.2671965]
[1746158886244,2.69556,1849.4,1849.2,61.2671965]
[1746158887148,2.69556,1849.4,1849.2,60.1859365]
[1746158887749,1.08121,1849.3,1849.2,60.1859365]
[1746158888138,4.28901,1849.3,1849.2,56.7129365]
[1746158888342,4.28901,1849.3,1849.2,42.473]
[1746158891452,10.91085,1849.3,1848.7,3.2078]
[1746158891648,1.08139,1849.0,1848.9,1.6232]
[1746158891953,4.28919,1849.0,1848.9,42.4232]
[1746158892253,1.08151,1848.8,1848.7,4.2935]
[1746158892445,1.08151,1848.8,1848.7,5.9796]
[1746158892648,1.5771,1848.9,1848.7,2.5006]
[1746158892847,1.0816,1848.7,1848.5,4.56067]
[1746158893153,1.0816,1848.7,1848.6,1.6861]
[1746158893351,1.0816,1848.7,1848.6,42.4861]
[1746158894653,2.6587,1848.7,1848.6,42.4861]
[1746158895553,2.6587,1848.7,1848.6,40.8]
[1746158896048,1.5771,1848.7,1848.4,1.746]
[1746158896250,1.08168,1848.5,1848.4,1.746]
[1746158896451,1.08168,1848.5,1848.4,2.82774]
[1746158896650,4.28944,1848.6,1848.4,42.546]
[1746158897048,4.28944,1848.6,1848.4,43.62774]
[1746158897255,4.28944,1848.6,1848.5,1.746]
[1746158897454,4.28944,1848.6,1848.2,27.6510365]
[1746158897455,3.2078,1848.6,1848.2,15.0312365]
[1746158897656,2.80093,1848.5,1848.2,3.61915]
[1746158897954,2.80093,1848.5,1848.3,42.5458]
[1746158898156,2.80093,1848.5,1848.4,1.7458]
[1746158898649,3.2078,1848.6,1848.4,1.7458]
[1746158898957,1.08168,1848.5,1848.4,1.7458]
[1746158902860,2.76068,1848.5,1848.4,1.7458]
[1746158904053,1.679,1848.5,1848.4,2.82754]
[1746158904562,2.76068,1848.5,1848.4,1.7458]
[1746158904961,3.2078,1848.6,1848.5,1.08168]
[1746158905362,4.28942,1848.6,1848.5,1.08168]
[1746158906271,3.2078,1848.6,1848.5,1.08168]
[1746158906568,4.28942,1848.6,1848.5,1.08168]
[1746158907173,3.2078,1848.6,1848.5,1.08168]
[1746158908760,4.28942,1848.6,1848.5,1.08168]
[1746158909373,4.28942,1848.6,1848.4,2.8275]
[1746158909573,4.28945,1848.6,1848.4,1.7458]
[1746158909871,4.28945,1848.6,1848.5,1.6365]
[1746158910867,1.08174,1848.4,1848.3,40.8]
[1746158911172,1.08174,1848.4,1848.3,42.4108]
[1746158911474,1.08174,1848.4,1848.3,1.6108]
[1746158911768,1.0818,1848.3,1848.2,0.7913]
[1746158911966,1.08186,1848.2,1848.1,1.6108]
[1746158912172,5.15326,1848.2,1848.1,2.69272]
[1746158912373,3.2078,1848.2,1848.1,2.69272]
[1746158912769,1.08179,1848.4,1848.2,1.08182]
[1746158912972,1.08179,1848.4,1848.3,1.6108]
[1746158913469,2.80419,1848.4,1848.3,1.6108]
[1746158914871,1.08179,1848.4,1848.3,2.6926]
[1746158915777,1.08179,1848.4,1848.3,1.6108]
[1746158916577,1.08179,1848.4,1848.3,2.4527]
[1746158917074,3.2078,1848.5,1848.4,1.08174]
[1746158917371,3.2078,1849.3,1848.8,1.08151]
[1746158917570,4.79742,1849.3,1849.2,1.08127]
[1746158917772,6.38505756,1849.4,1849.2,1.08127]
[1746158917970,6.38505756,1849.4,1849.3,1.7351]
[1746158919578,2.78016,1849.4,1849.3,1.7351]
[1746158919774,1.08133,1849.1,1849.0,40.8]
[1746158919977,5.91067,1849.5,1848.5,0.42838276]
[1746158919978,1.08159,1848.7,1848.5,4.28945]
[1746158920175,1.08162,1848.6,1848.5,1.6957]
[1746158921381,0.8623,1848.7,1848.5,3.3425]
[1746158921576,1.08162,1848.6,1848.5,1.6957]
[1746158922169,1.08162,1848.6,1848.5,0.8446]
[1746158923375,2.82822,1848.6,1848.5,0.8446]
[1746158924581,6.03602,1848.6,1848.5,0.8446]
[1746158925882,1.08168,1848.5,1848.4,40.8]
[1746158926082,2.79508,1848.5,1848.4,40.8]
[1746158935683,2.79508,1848.5,1848.4,42.5106]
[1746158937486,1.08168,1848.5,1848.4,42.5106]
[1746158940187,1.0818,1848.3,1848.2,3.516]
[1746158940388,3.2078,1848.3,1848.2,1.597]
[1746158940690,1.0818,1848.3,1848.2,42.397]
[1746158941480,4.2896,1848.3,1848.2,42.397]
[1746158941683,1.08186,1848.2,1848.1,0.866]
[1746158942287,1.08186,1848.2,1848.1,2.463]
[1746158942789,2.75956,1848.2,1848.1,2.463]
[1746158946194,1.08209,1847.8,1847.7,1.08212]
[1746158946384,1.08209,1847.8,1847.7,5.1616]
[1746158946585,1.08209,1847.8,1847.7,45.9616]
[1746158946789,1.08206,1847.9,1847.8,1.08209]
[1746158946989,1.08206,1847.9,1847.7,47.04372]
[1746158948287,1.08206,1847.9,1847.8,1.6271]
[1746158949599,5.14943,1848.1,1847.8,1.6271]
[1746158949802,4.28972,1848.1,1848.0,1.08198]
[1746158949996,4.28972,1848.1,1847.9,1.08199]
[1746158950299,4.28972,1848.1,1848.0,1.7185]
[1746158950500,4.28972,1848.1,1848.0,2.5464]
[1746158951598,3.2078,1848.1,1848.0,2.5464]
[1746158951798,3.2078,1848.1,1848.0,3.62838]
[1746158954200,3.2078,1848.1,1848.0,7.32438]
[1746158955903,3.2078,1848.1,1848.0,10.81338]
[1746158956606,4.28972,1848.1,1848.0,9.7314]
[1746158956809,3.2078,1848.1,1848.0,9.7314]
[1746158957106,4.28972,1848.1,1848.0,9.7314]
[1746158957505,4.28972,1848.1,1848.0,5.4145]
[1746158958206,4.28972,1848.1,1848.0,1.7185]
[1746158959108,4.28972,1848.1,1848.0,2.80048]
[1746158959404,4.28972,1848.1,1848.0,1.7185]
[1746158960608,1.08203,1847.9,1847.7,47.03942]
[1746158960808,1.08203,1847.9,1847.8,1.6643]
[1746158961307,2.81783,1847.9,1847.8,1.6643]
[1746158961501,6.02563,1847.9,1847.8,1.6643]
[1746158961698,6.02568,1847.9,1847.7,0.8392]
[1746158961900,1.08209,1847.8,1847.7,3.62242]
[1746158962100,4.9436,1847.9,1847.7,3.62242]
[1746158962303,4.9436,1847.9,1847.8,1.7011]
[1746158962605,6.02563,1847.9,1847.8,1.7011]
[1746158963104,0.8326,1848.0,1847.8,1.7011]
[1746158963310,1.91462,1848.0,1847.8,3.59495]
[1746158963508,5.12242,1848.0,1847.9,1.7011]
[1746158965110,1.91462,1848.0,1847.9,1.7011]
[1746158965710,1.91462,1848.0,1847.9,2.78313]
[1746158966208,1.91462,1848.0,1847.9,1.7011]
[1746158966410,5.12242,1848.0,1847.9,1.7011]
[1746158966711,5.12242,1848.0,1847.9,2.78313]
[1746158967011,5.12242,1848.0,1847.9,1.7011]
[1746158968107,5.12242,1848.0,1847.9,2.78313]
[1746158969412,5.12242,1848.0,1847.9,1.7011]
[1746158969613,5.12242,1848.0,1847.9,2.78313]
[1746158969808,5.12242,1848.0,1847.9,1.7011]
[1746158970017,5.12242,1848.0,1847.9,2.78313]
[1746158970204,1.91462,1848.0,1847.9,2.78313]
[1746158970509,5.12242,1848.0,1847.9,1.7011]
[1746158970709,1.91462,1848.0,1847.9,1.7011]
[1746158971715,6.72879,1848.2,1847.9,1.7011]
[1746158971910,6.8271,1848.2,1848.0,1.08194]
[1746158972217,6.8271,1848.2,1848.1,2.4227]
[1746158973718,6.8271,1848.2,1848.1,3.50462]
[1746158974112,6.8271,1848.2,1848.1,2.4227]
[1746158974616,6.8271,1848.2,1848.1,3.50462]
[1746158975018,5.7452,1848.2,1848.1,3.50462]
[1746158975220,6.82706,1848.2,1848.1,2.4227]
[1746158975918,6.82706,1848.2,1848.1,3.50462]
[1746158976119,6.82706,1848.2,1848.1,2.4227]
[1746158976317,4.0328,1848.2,1848.1,3.50462]
[1746158976519,3.2078,1848.2,1848.1,4.33622]
[1746158977426,3.2078,1848.2,1848.1,3.50462]
[1746158979619,4.28966,1848.2,1848.1,3.50462]
[1746158979819,3.2078,1848.2,1848.1,3.50462]
[1746158981026,4.28966,1848.2,1848.1,2.4227]
[1746158981328,6.01946,1848.2,1848.1,2.4227]
[1746158981526,1.08192,1848.1,1848.0,40.8]
[1746158981726,2.5249,1848.1,1848.0,40.8]
[1746158982229,2.5249,1848.1,1848.0,41.88196]
[1746158982230,3.60682,1848.1,1848.0,41.88196]
[1746158982431,3.60682,1848.1,1848.0,43.63256]
[1746158985135,3.60682,1848.1,1848.0,42.5506]
[1746158985437,3.60682,1848.1,1848.0,43.63258]
[1746158986437,2.5249,1848.1,1848.0,43.63258]
[1746158987137,3.2078,1848.2,1848.1,1.08192]
[1746158987435,3.60489756,1848.3,1848.2,1.08186]
[1746158987935,3.60489756,1848.3,1848.2,2.75256]
[1746158990137,4.68669756,1848.3,1848.2,2.75256]
[1746158990431,3.60489756,1848.3,1848.2,2.75256]
[1746158990636,4.28958,1848.4,1848.2,2.75256]
[1746158990932,1.08186,1848.2,1848.1,0.7956]
[1746158991236,1.082,1848.0,1847.9,5.8974]
[1746158992035,2.8277,1848.0,1847.9,5.8974]
[1746158992234,2.8277,1848.0,1847.9,6.97943]
[1746158992936,2.8277,1848.0,1847.9,5.8974]
[1746158993738,2.8277,1848.0,1847.9,6.97943]
[1746158994038,1.7457,1848.0,1847.9,6.97943]
[1746158994342,2.82768,1848.0,1847.9,5.8974]
[1746158995339,1.7457,1848.0,1847.9,6.97943]
[1746158995640,2.82768,1848.0,1847.9,6.97943]
[1746158995937,2.82768,1848.0,1847.9,5.8974]
[1746158996138,4.9535,1848.0,1847.7,3.475]
[1746158996341,4.28989,1847.8,1847.7,5.2262]
[1746158996731,6.78579,1847.8,1847.7,46.0262]
[1746158997041,6.78579,1847.8,1847.7,47.10835]
[1746158997242,3.57799,1847.8,1847.7,47.10835]
[1746158998140,2.4959,1847.8,1847.7,47.10835]
[1746158998341,1.90369,1847.8,1847.7,47.10835]
[1746158998939,1.90369,1847.8,1847.7,46.0262]
[1746158999143,1.90369,1847.8,1847.7,47.10835]
[1746159000243,1.90369,1847.8,1847.7,46.0262]
[1746159000940,1.90369,1847.8,1847.7,47.10835]
[1746159001138,1.90369,1847.8,1847.7,46.0262]
[1746159001338,1.90369,1847.8,1847.7,47.10835]
[1746159001641,3.60489756,1848.1,1847.7,46.0262]
[1746159001841,7.18032839,1848.3,1848.2,1.08186]
[1746159002038,6.86032488,1848.4,1848.3,1.0818]
[1746159002344,4.88e-06,1848.4,1848.3,8.0933]
[1746159002541,22.99246304,1849.1,1849.0,1.08139]
[1746159002744,1.08139,1849.0,1848.7,3.476]
[1746159002942,1.08145,1848.9,1848.8,42.4421]
[1746159003136,1.08145,1848.9,1848.6,3.476]
[1746159003137,1.08157,1848.7,1848.6,3.476]
[1746159003440,4.28937,1848.7,1848.6,1.6421]
[1746159003641,4.28937,1848.7,1848.6,42.4421]
[1746159003839,2.71617,1848.7,1848.6,42.4421]
[1746159004945,5.96974,1848.8,1848.6,42.4421]
[1746159005132,5.96974,1848.8,1848.7,1.6346]
[1746159005946,5.96974,1848.8,1848.6,40.8]
[1746159005947,1.08157,1848.7,1848.6,40.8]
[1746159006138,2.74607,1848.7,1848.6,40.8]
[1746159006533,1.08162,1848.6,1848.5,1.6346]
[1746159006746,2.74612,1848.6,1848.5,1.6346]
[1746159007139,2.74612,1848.6,1848.5,42.4346]
[1746159007341,4.8882,1848.8,1848.6,1.08157]
[1746159007546,1.08159,1848.7,1848.5,2.71626]
[1746159007749,1.08159,1848.7,1848.6,42.4703]
[1746159010151,2.80629,1848.7,1848.6,42.4703]
[1746159011450,1.08168,1848.5,1848.4,4.3414]
[1746159011650,1.08168,1848.5,1848.4,5.9432]
[1746159012043,1.08168,1848.5,1848.4,46.7432]
[1746159012251,2.81837,1848.6,1848.4,46.7432]
[1746159012551,2.81837,1848.6,1848.5,1.6018]
[1746159014147,6.02617,1848.6,1848.5,1.6018]
[1746159017248,1.7367,1848.6,1848.5,5.89128]
[1746159017457,1.58962,1849.1,1848.6,2.70407]
[1746159017652,4.28918,1849.1,1848.7,7.4946]
[1746159017847,1.08138,1849.1,1848.9,1.08142]
[1746159018046,1.08138,1849.1,1849.0,1.6794]
[1746159024054,1.88038,1849.1,1849.0,1.6794]
[1746159024253,3.57838,1849.1,1849.0,1.6794]
[1746159025160,1.08145,1848.9,1848.8,0.8369]
[1746159025356,1.08142,1849.0,1848.8,1.91839]
[1746159025659,1.08142,1849.0,1848.9,1.6701]
[1746159029460,1.08145,1848.9,1848.8,0.8369]
[1746159030148,1.08145,1848.9,1848.8,2.5834]
[1746159041163,1.08145,1848.9,1848.8,0.8369]
[1746159041466,1.08162,1848.6,1848.5,7.4924]
[1746159041666,1.08168,1848.5,1848.4,40.8]
[1746159041867,1.93728,1848.5,1848.4,40.8]
[1746159042468,1.93728,1848.5,1848.4,43.2909]
[1746159043167,1.08168,1848.5,1848.4,43.2909]
[1746159043860,2.70168,1848.5,1848.4,43.2909]
[1746159044373,1.08168,1848.5,1848.4,43.2909]
[1746159046474,2.70168,1848.5,1848.4,0.835]
[1746159046675,1.0818,1848.3,1848.2,8.78964146]
[1746159046875,4.2896,1848.3,1848.2,49.58964146]
[1746159047277,1.0818,1848.3,1848.2,49.58964146]
[1746159047480,1.0818,1848.3,1848.2,1.593]
[1746159047878,2.7962,1848.3,1848.2,1.593]
[1746159048383,6.004,1848.3,1848.2,1.593]
[1746159048679,6.004,1848.3,1848.1,45.142]
[1746159048680,1.08186,1848.2,1848.1,41.651]
[1746159048880,1.08186,1848.2,1848.1,43.3947]
[1746159051487,2.79624,1848.3,1848.1,44.47658]
[1746159051783,2.79624,1848.3,1848.2,1.6386]
[1746159052581,6.00404,1848.3,1848.2,1.6386]
[1746159052784,1.08186,1848.2,1848.1,0.851]
[1746159052988,2.70546,1848.2,1848.1,0.851]
[1746159054784,1.08203,1847.9,1847.8,10.68864146]
[1746159054980,1.08203,1847.9,1847.8,13.21924146]
[1746159055182,1.08203,1847.9,1847.8,57.71524146]
[1746159055885,1.08203,1847.9,1847.8,50.5186]
[1746159056084,1.08203,1847.9,1847.8,43.3306]
[1746159067994,2.67093,1847.9,1847.8,43.3306]
[1746159068794,1.08203,1847.9,1847.8,43.3306]
[1746159069892,2.82113,1847.9,1847.8,43.3306]
[1746159072002,1.08203,1847.9,1847.8,43.3306]
[1746159072699,1.08203,1847.9,1847.8,44.41269]
[1746159073096,1.08203,1847.9,1847.8,43.3306]
[1746159075091,0.8577,1848.1,1847.8,48.10866]
[1746159075297,1.08198,1848.0,1847.9,1.5952]
[1746159075899,1.08198,1848.0,1847.9,42.3952]
[1746159076396,1.08198,1848.0,1847.9,1.5952]
[1746159076595,1.08198,1848.0,1847.9,2.67723]
[1746159076898,1.08198,1848.0,1847.9,1.5952]
[1746159077999,1.08198,1848.0,1847.9,2.67723]
[1746159078199,1.08198,1848.0,1847.9,5.2912]
[1746159079101,1.08198,1848.0,1847.9,1.5952]
[1746159079296,2.67208,1848.0,1847.9,1.5952]
[1746159080104,1.08203,1847.9,1847.8,41.6625]
[1746159080302,1.08203,1847.9,1847.8,43.3923]
[1746159080303,2.67213,1847.9,1847.8,43.3923]
[1746159080800,1.5901,1847.9,1847.8,44.47439]
[1746159081003,1.08203,1847.9,1847.8,44.47439]
[1746159081201,1.08203,1847.9,1847.8,43.3923]
[1746159083797,2.75503,1847.9,1847.8,43.3923]
[1746159088815,2.75503,1847.9,1847.8,40.8]
[1746159089611,1.08215,1847.7,1847.6,2.5336]
[1746159090308,2.76585,1847.7,1847.6,2.5336]
[1746159092998,1.08215,1847.7,1847.6,2.5336]
[1746159095806,4.0668,1847.8,1847.7,1.08215]
[1746159095807,3.2078,1847.8,1847.7,1.08215]
[1746159096009,4.0468,1848.0,1847.7,1.6411]
[1746159096209,4.0468,1848.0,1847.7,6.19622]
[1746159096210,1.08209,1847.8,1847.7,6.19622]
[1746159096812,1.08209,1847.8,1847.7,5.1141]
[1746159098915,1.08207,1847.9,1847.7,5.1141]
[1746159099207,1.08207,1847.9,1847.8,2.5084]
[1746159099715,1.08207,1847.9,1847.8,43.3084]
[1746159100214,1.08207,1847.9,1847.8,44.39049]
[1746159101317,4.0468,1848.0,1847.9,1.08203]
[1746159101521,1.08196,1848.1,1848.0,1.08196]
[1746159101712,1.08196,1848.1,1847.9,3.5457]
[1746159101911,5.39572915,1848.3,1848.2,1.08186]
[1746159102712,6.47752915,1848.3,1848.2,1.7011]
[1746159102911,8.14592915,1848.3,1848.2,1.7011]
[1746159103111,1.08192,1848.1,1847.9,12.10049]
[1746159103312,1.08192,1848.1,1848.0,1.7011]
[1746159103815,4.28972,1848.1,1848.0,1.7011]
[1746159104015,5.95812,1848.1,1848.0,1.7011]
[1746159105413,1.08198,1848.0,1847.9,0.8074]
[1746159105613,2.79438,1848.0,1847.9,0.8074]
[1746159108516,1.7124,1848.0,1847.7,7.19664146]
[1746159108718,1.08209,1847.8,1847.7,7.19664146]
[1746159109117,2.73149,1847.8,1847.7,8.88084146]
[1746159111419,2.73149,1847.8,1847.7,1.6842]
[1746159112525,1.08209,1847.8,1847.7,1.6842]
[1746159114813,1.08209,1847.8,1847.7,2.539]
[1746159116419,1.08209,1847.8,1847.7,1.6842]
[1746159116616,2.82149,1847.8,1847.7,1.6842]
[1746159117320,1.08215,1847.7,1847.6,41.6662]
[1746159117621,6.04025,1847.7,1847.6,43.327]
[1746159118017,6.04025,1847.7,1847.6,44.40921]
[1746159119021,6.04025,1847.7,1847.6,43.327]
[1746159119223,6.04025,1847.7,1847.6,40.8]
[1746159119919,1.08221,1847.6,1847.5,12.32944146]
[1746159120113,1.94341,1847.6,1847.5,8.85744146]
[1746159120316,1.94341,1847.6,1847.5,12.55344146]
[1746159120622,1.94341,1847.6,1847.5,53.35344146]
[1746159120916,4.9581,1847.7,1847.5,54.43571146]
[1746159121221,3.2078,1847.9,1847.6,1.6699]
[1746159121420,1.08215,1847.7,1847.6,1.6699]
[1746159121622,4.28995,1847.7,1847.6,1.6699]
[1746159123923,5.99295,1847.7,1847.6,1.6699]
[1746159126228,1.94334,1847.8,1847.6,2.75211]
[1746159126424,1.94334,1847.8,1847.7,0.8715]
[1746159126625,1.94334,1847.8,1847.7,2.6089]
[1746159127125,1.94334,1847.8,1847.7,6.3049]
[1746159127728,1.94334,1847.8,1847.7,7.1343]
[1746159128328,1.94334,1847.8,1847.7,6.2628]
[1746159129328,3.58894,1847.8,1847.7,3.696]
[1746159131128,3.58894,1847.8,1847.7,5.4288]
[1746159134036,3.2078,1847.9,1847.8,1.08209]
[1746159134331,3.2078,1847.9,1847.8,3.52029]
[1746159134530,3.2078,1847.9,1847.8,4.34309]
[1746159135037,4.28983,1847.9,1847.8,4.34309]
[1746159135237,3.2078,1847.9,1847.8,4.34309]
[1746159136134,3.2078,1847.9,1847.8,8.03909]
[1746159136541,1.08199,1848.0,1847.9,1.08203]
[1746159136838,1.08199,1848.0,1847.9,2.70173]
[1746159137233,1.08199,1848.0,1847.9,1.6197]
[1746159137439,4.28979,1848.0,1847.9,1.6197]
[1746159139240,5.96569,1848.0,1847.9,1.6197]
[1746159141344,4.28979,1848.0,1847.9,1.6197]
[1746159141743,1.08199,1848.0,1847.9,1.6197]
[1746159143943,1.08199,1848.0,1847.9,2.70173]
[1746159144242,1.08199,1848.0,1847.9,1.6197]
[1746159144441,3.58686,1848.1,1847.9,2.70173]
[1746159144643,3.2078,1848.2,1848.1,1.08192]
[1746159144941,4.28966,1848.2,1848.1,1.08192]
[1746159145142,4.28966,1848.2,1848.1,4.47222]
[1746159145642,4.28966,1848.2,1848.1,3.3903]
[1746159147242,1.08186,1848.2,1848.1,3.3903]
[1746159148336,1.08186,1848.2,1848.1,4.47222]
[1746159149638,1.08186,1848.2,1848.1,3.3903]
[1746159150138,4.0459,1848.4,1848.1,3.3903]
[1746159150338,5.12769,1848.4,1848.2,2.82421]
[1746159150633,5.12769,1848.4,1848.3,1.7424]
[1746159151143,5.12769,1848.4,1848.3,2.8242]
[1746159151743,5.12769,1848.4,1848.3,1.7424]
[1746159152745,1.91989,1848.4,1848.3,2.8242]
[1746159152941,1.91989,1848.4,1848.3,1.7424]
[1746159154146,1.91989,1848.4,1848.3,5.4384]
[1746159154841,0.8381,1848.4,1848.3,6.5202]
[1746159155046,10.29338925,1848.7,1848.4,1.08172]
[1746159155241,1.08168,1848.6,1848.5,1.6076]
[1746159156038,2.76028,1848.6,1848.5,1.6076]
[1746159158547,1.08183,1848.3,1848.1,3.471]
[1746159158748,4.28963,1848.3,1848.2,1.08186]
[1746159159139,4.28963,1848.3,1848.2,1.693]
[1746159159446,1.08183,1848.3,1848.2,2.77486]
[1746159159648,1.08183,1848.3,1848.2,1.693]
[1746159160147,2.76743,1848.3,1848.2,1.693]
[1746159160544,1.08186,1848.2,1848.1,4.3093]
[1746159160749,2.76746,1848.2,1848.1,4.3093]
[1746159161042,2.76746,1848.2,1848.1,5.9326]
[1746159161243,2.76746,1848.2,1848.1,7.01452]
[1746159161644,2.76746,1848.2,1848.1,5.9326]
[1746159164250,1.08198,1848.0,1847.9,4.3168]
[1746159164452,1.08198,1848.0,1847.9,3.47]
[1746159164949,1.08198,1848.0,1847.9,1.6884]
[1746159165140,4.28978,1848.0,1847.9,1.6884]
[1746159166050,4.0354,1848.2,1847.9,1.6884]
[1746159166253,1.08198,1848.0,1847.9,5.3844]
[1746159167154,1.08198,1848.0,1847.9,1.6884]
[1746159167646,2.68728,1848.0,1847.9,1.6884]
[1746159172560,3.54668,1848.0,1847.9,1.6884]
[1746159176759,3.54668,1848.0,1847.9,2.77043]
[1746159177057,0.8276,1848.2,1847.9,1.6884]
[1746159177352,3.2852,1848.2,1848.1,1.08192]
[1746159177656,4.79742,1848.3,1848.2,1.08186]
[1746159177856,3.61358925,1848.5,1848.1,7.04726]
[1746159178154,3.61358925,1848.5,1848.4,1.08174]
[1746159178555,4.69526925,1848.5,1848.4,1.08174]
[1746159178954,4.69526925,1848.5,1848.4,3.56004]
[1746159179156,7.90306925,1848.5,1848.4,3.56004]
[1746159179356,4.69526925,1848.5,1848.4,3.56004]
[1746159180157,4.69526925,1848.5,1848.4,7.03004]
[1746159180359,4.69526925,1848.5,1848.4,5.9483]
[1746159180557,1.08168,1848.5,1848.4,5.9483]
[1746159180751,2.80048,1848.5,1848.4,5.9483]
[1746159181259,6.00828,1848.5,1848.4,5.9483]